[Event "Polish Youth 1st League 2022"]
[Site "Lublin"]
[Date "2022.07.02"]
[Round "8.1"]
[White "Madej, Marek"]
[Black "Luczak, Filip"]
[Result "0-1"]
[ECO "C04"]
[WhiteElo "1978"]
[BlackElo "2311"]
[Annotator "RC"]
[PlyCount "102"]
[EventDate "2022.06.24"]
[EventType "team-tourn"]
[EventCountry "POL"]
[SourceTitle "playchess.com"]
[Source "ChessBase"]
[SourceQuality "1"]
[TimeControl "40/5400+30:1800+30"]

1. e4 {[%emt 0:00:04]} e6 {[%emt 0:00:01]} 2. d4 {[%emt 0:00:05]} d5 {[%emt 0:00:02]} 3. Nd2 {[%emt 0:00:11]} Nc6 {[%emt 0:00:41]} 4. Ngf3 {[%emt 0:01:38]} Nf6 {[%emt 0:00:04]} 5. e5 {[%emt 0:03:56]} Nd7 {[%emt 0:00:01]} 6. c3 {[%emt 0:04:32]} f6 {[%emt 0:00:06]} 7. exf6 {[%emt 0:00:17]} Qxf6 {[%emt 0:00:04]} 8. Bb5 {[%emt 0:11:01]} Bd6 {[%emt 0:01:36]} 9. O-O {[%emt 0:00:06]} O-O {[%emt 0:02:01]} 10. Nb3 {[%emt 0:04:06]} e5 {[%emt 0:05:18]} 11. Bxc6 {[%emt 0:10:23]} bxc6 {[%emt 0:00:15]} 12. dxe5 {[%emt 0:00:08]} Nxe5 {[%emt 0:01:15]} 13. Nxe5 {[%emt 0:00:10]} Qxe5 {[%emt 0:01:28]} 14. f4 {[%emt 0:00:30]} Qe8 {[%emt 0:03:34]} 15. Bd2 {[%emt 0:12:53]} Bf5 {[%emt 0:05:38]} 16. Qe1 {[%emt 0:08:02]} Be4 {[%emt 0:02:51]} 17. Be3 {[%emt 0:01:30]} Qh5 {[%emt 0:02:55]} 18. Qd2 {[%emt 0:08:09]} Rf6 {[%emt 0:06:20]} 19. g3 {[%emt 0:11:06]} Qh3 {[%emt 0:05:29]} 20. Qf2 {[%emt 0:11:07]} g5 {[%emt 0:06:49]} 21. Nd2 {[%emt 0:01:40]} Bd3 {[%emt 0:05:30]} 22. Rfe1 {[%emt 0:00:01]} gxf4 {[%emt 0:05:09]} 23. gxf4 {[%emt 0:00:09]} Raf8 {[%emt 0:00:57]} 24. Kh1 {[%emt 0:01:05]} Bxf4 {[%emt 0:01:29]} 25. Rg1+ {[%emt 0:01:48]} Bg6 {[%emt 0:00:14]} 26. Bxf4 {[%emt 0:01:46]} Rxf4 {[%emt 0:00:05]} 27. Qg2 {[%emt 0:00:12]} Qh4 {[%emt 0:02:35]} 28. Raf1 {[%emt 0:01:06]} Rf2 {[%emt 0:00:37]} 29. Rxf2 {[%emt 0:00:31]} Rxf2 {[%emt 0:00:02]} 30. Nf3 {[%emt 0:00:05]} Rxg2 31. Nxh4 {[%emt 0:00:03]} Rxg1+ {[%emt 0:02:40]} 32. Kxg1 {[%emt 0:00:06]} Be4 {[%emt 0:00:04]} 33. b4 {[%emt 0:03:22]} Kf7 {[%emt 0:00:04]} 34. Kf2 {[%emt 0:00:20]} Ke6 {[%emt 0:00:33]} 35. Ke3 {[%emt 0:00:27]} Ke5 {[%emt 0:01:08]} 36. a3 {[%emt 0:00:23]} a6 {[%emt 0:01:46]} 37. a4 {[%emt 0:01:51]} Bh1 {[%emt 0:01:17]} 38. a5 {[%emt 0:02:08]} Be4 {[%emt 0:00:42]} 39. Nf3+ {[%emt 0:01:10]} Bxf3 {[%emt 0:00:30]} 40. Kxf3 {[%emt 0:00:00]} Kd6 {[%emt 0:00:00]} 41. Ke3 {[%emt 0:04:12]} c5 {[%emt 0:00:49]} 42. Kd3 {[%emt 0:00:11]} cxb4 {[%emt 0:00:16]} 43. cxb4 {[%emt 0:00:05]} Kc6 {[%emt 0:00:33]} 44. Kd4 {[%emt 0:00:15]} Kb5 {[%emt 0:00:05]} 45. Kxd5 {[%emt 0:00:14]} Kxb4 {[%emt 0:00:02]} 46. Kc6 {[%emt 0:00:13]} Kxa5 {[%emt 0:00:04]} 47. Kc5 {[%emt 0:00:07]} Ka4 {[%emt 0:00:22]} 48. Kc4 {[%emt 0:00:04]} a5 {[%emt 0:00:11]} 49. Kc3 {[%emt 0:00:07]} Kb5 {[%emt 0:00:02]} 50. Kb3 {[%emt 0:00:05]} c5 {[%emt 0:00:03]} 51. Ka3 {[%emt 0:00:18]} Kc4 {[%emt 0:00:04]} 0-1

[Event "Polish Youth 1st League 2022"]
[Site "Lublin"]
[Date "2022.07.02"]
[Round "8.2"]
[White "Bachor, Tomasz"]
[Black "Nowak, Filip"]
[Result "1/2-1/2"]
[ECO "D45"]
[WhiteElo "1971"]
[BlackElo "1819"]
[Annotator "NA RC"]
[PlyCount "61"]
[EventDate "2022.06.24"]
[EventType "team-tourn"]
[EventCountry "POL"]
[SourceTitle "playchess.com"]
[Source "ChessBase"]
[SourceQuality "1"]
[TimeControl "40/5400+30:1800+30"]

1. d4 {[%emt 0:00:14]} d5 {[%emt 0:00:07]} 2. c4 c6 {[%emt 0:00:06]} 3. Nf3 {[%emt 0:00:19]} Nf6 {[%emt 0:00:06]} 4. Nc3 {[%emt 0:00:39]} e6 {[%emt 0:00:09]} 5. e3 {[%emt 0:00:23]} Nbd7 {[%emt 0:00:20]} 6. Qc2 {[%emt 0:00:19]} Be7 {[%emt 0:00:41]} 7. b3 {[%emt 0:00:33]} O-O {[%emt 0:01:07]} 8. Bb2 {[%emt 0:00:53]} b6 {[%emt 0:01:54]} 9. Be2 {[%emt 0:01:28]} Bb7 {[%emt 0:01:18]} 10. O-O {[%emt 0:01:41]} Rc8 {[%emt 0:04:13]} 11. Rac1 {[%emt 0:05:11]} Qc7 {[%emt 0:02:03]} 12. Rfd1 {[%emt 0:01:18]} Rfd8 {[%emt 0:00:26]} 13. e4 {[%emt 0:07:31]} dxe4 {[%emt 0:02:16]} 14. Nxe4 {[%emt 0:00:20]} Nxe4 {[%emt 0:00:28]} 15. Qxe4 {[%emt 0:00:04]} Nf6 {[%emt 0:00:26]} 16. Qb1 {[%emt 0:03:06]} c5 {[%emt 0:03:56]} 17. dxc5 {[%emt 0:15:28]} Qxc5 {[%emt 0:02:39]} 18. Rxd8+ {[%emt 0:22:35]} Rxd8 {[%emt 0:00:21]} 19. Bxf6 {[%emt 0:03:56]} Bxf6 {[%emt 0:00:07]} 20. Rd1 {[%emt 0:00:04]} Qc7 {[%emt 0:08:03]} 21. Ne1 {[%emt 0:02:49]} Rxd1 {[%emt 0:02:58]} 22. Qxd1 {[%emt 0:00:18]} g6 {[%emt 0:00:15]} 23. Bf3 {[%emt 0:00:17]} Bxf3 {[%emt 0:00:58]} 24. Nxf3 {[%emt 0:00:05]} Qf4 {[%emt 0:01:44]} 25. Qc2 {[%emt 0:01:48]} Qd6 {[%emt 0:04:01]} 26. Kf1 {[%emt 0:00:55]} Kg7 {[%emt 0:00:32]} 27. h3 {[%emt 0:00:51]} h5 $11 {[%emt 0:00:36]} 28. Ke2 {[%emt 0:01:33]} a5 {[%emt 0:01:49]} 29. Qc1 {[%emt 0:07:21]} Kf8 {[%emt 0:02:28]} 30. Qc2 {[%emt 0:02:11]} Kg7 {[%emt 0:03:44]} 31. Qc1 {[%emt 0:00:10]} 1/2-1/2

[Event "Polish Youth 1st League 2022"]
[Site "Lublin"]
[Date "2022.07.02"]
[Round "8.3"]
[White "Grot, Blazej"]
[Black "Cieslak, Patryk"]
[Result "0-1"]
[ECO "B67"]
[WhiteElo "1819"]
[BlackElo "2019"]
[Annotator "NA RC"]
[PlyCount "114"]
[EventDate "2022.06.24"]
[EventType "team-tourn"]
[EventCountry "POL"]
[SourceTitle "playchess.com"]
[Source "ChessBase"]
[SourceQuality "1"]
[TimeControl "40/5400+30:1800+30"]

1. e4 c5 {[%emt 0:00:30]} 2. Nf3 {[%emt 0:00:09]} d6 {[%emt 0:00:30]} 3. d4 {[%emt 0:00:06]} cxd4 {[%emt 0:00:06]} 4. Nxd4 {[%emt 0:00:04]} Nf6 {[%emt 0:00:06]} 5. Nc3 {[%emt 0:00:06]} Nc6 {[%emt 0:00:15]} 6. Bg5 {[%emt 0:01:18]} e6 {[%emt 0:00:08]} 7. Qd2 {[%emt 0:00:34]} a6 {[%emt 0:00:09]} 8. O-O-O {[%emt 0:00:34]} Bd7 {[%emt 0:00:43]} 9. f3 {[%emt 0:02:39]} Nxd4 {[%emt 0:00:45]} 10. Qxd4 {[%emt 0:01:44]} Be7 {[%emt 0:00:16]} 11. g4 {[%emt 0:03:18]} h5 {[%emt 0:01:13]} 12. Be2 {[%emt 0:02:52]} b5 {[%emt 0:13:58]} 13. f4 {[%emt 0:18:25]} Bc6 {[%emt 0:19:20]} 14. gxh5 {[%emt 0:06:15]} b4 {[%emt 0:05:16]} 15. Qxb4 {[%emt 0:02:39]} d5 {[%emt 0:00:57]} 16. Qd4 {[%emt 0:00:57]} dxe4 {[%emt 0:07:28]} 17. Qxd8+ {[%emt 0:07:29]} Bxd8 {[%emt 0:00:03]} 18. Rd6 {[%emt 0:00:48]} Bb7 {[%emt 0:00:34]} 19. Rhd1 {[%emt 0:06:16]} Bc7 {[%emt 0:01:45]} 20. R6d4 {[%emt 0:02:52]} Nd5 {[%emt 0:03:58]} 21. Nxe4 {[%emt 0:01:51]} f6 {[%emt 0:05:22]} 22. Bh4 {[%emt 0:08:35]} Bxf4+ {[%emt 0:02:41]} 23. Kb1 {[%emt 0:00:07]} Be5 {[%emt 0:02:24]} 24. c4 {[%emt 0:09:47]} (24. Ra4 $1 $14 {stays ahead.}) 24... Ne3 {[%emt 0:02:40]} 25. Nc5 {[%emt 0:01:25]} Nxd1 {[%emt 0:05:40]} 26. Rxd1 {[%emt 0:00:08]} Bc6 {[%emt 0:02:21]} 27. Nxe6 {[%emt 0:01:22]} Ke7 {[%emt 0:01:39]} 28. Bg4 {[%emt 0:05:14]} Be4+ {[%emt 0:01:25]} 29. Kc1 {[%emt 0:00:19]} Rhc8 {[%emt 0:02:17]} 30. b3 {[%emt 0:00:54]} Rab8 {[%emt 0:01:57]} 31. Re1 {[%emt 0:00:49]} Bf3 {[%emt 0:04:40]} 32. Bxf3 {[%emt 0:00:59]} Kxe6 {[%emt 0:00:04]} 33. Bd5+ {[%emt 0:00:22]} Kd6 {[%emt 0:01:24]} 34. Rd1 {[%emt 0:01:13]} Rh8 {[%emt 0:04:24]} 35. Bf3+ {[%emt 0:01:54]} Kc7 {[%emt 0:01:31]} 36. Rg1 {[%emt 0:00:16]} g5 {[%emt 0:00:53]} 37. hxg6 {[%emt 0:00:53]} Rxh4 {[%emt 0:00:03]} 38. g7 {[%emt 0:00:09]} Rxh2 {[%emt 0:04:00]} 39. g8=Q {[%emt 0:00:08]} Rxg8 {[%emt 0:00:15]} 40. Rxg8 {[%emt 0:00:00]} Bb2+ {[%emt 0:00:00]} 41. Kb1 {[%emt 0:01:14]} Ba3 {[%emt 0:04:51]} 42. Rg2 {[%emt 0:00:25]} Rh3 {[%emt 0:02:17]} 43. Bd5 {[%emt 0:00:04]} Kd6 {[%emt 0:02:31]} 44. Kc2 {[%emt 0:00:38]} a5 {[%emt 0:02:28]} 45. Rf2 {[%emt 0:01:38]} Rh6 {[%emt 0:00:21]} 46. Kd3 {[%emt 0:00:43]} Bc5 {[%emt 0:01:27] [#]} 47. Rf3 {[%emt 0:02:01]} (47. Rf5 $1 $16) 47... Ke5 48. Be4 {[%emt 0:00:16]} Rh5 {[%emt 0:02:39]} 49. Bd5 {[%emt 0:01:34]} Rh2 {[%emt 0:03:11]} 50. Be4 {[%emt 0:00:29]} Rh5 {[%emt 0:00:51]} 51. Bd5 {[%emt 0:00:46]} f5 {[%emt 0:00:20]} 52. Rf1 {[%emt 0:06:19]} Rh3+ {[%emt 0:00:13]} 53. Kc2 {[%emt 0:01:07]} Rh2+ {[%emt 0:00:25]} 54. Kd3 {[%emt 0:00:34]} Bb4 {[%emt 0:01:35]} 55. Rg1 {[%emt 0:03:15] [#]} Rd2+ $11 {[%emt 0:02:04]} 56. Ke3 {[%emt 0:00:51]} Rxd5 {[%emt 0:00:14]} 57. Rg8 {[%emt 0:00:29]} Rd1 {[%emt 0:00:29]} 0-1

[Event "Polish Youth 1st League 2022"]
[Site "Lublin"]
[Date "2022.07.02"]
[Round "8.4"]
[White "Brzezina, Piotr"]
[Black "Rozanski, Mateusz"]
[Result "1/2-1/2"]
[ECO "E81"]
[WhiteElo "1633"]
[BlackElo "1720"]
[Annotator "NA RC"]
[PlyCount "77"]
[EventDate "2022.06.24"]
[EventType "team-tourn"]
[EventCountry "POL"]
[SourceTitle "playchess.com"]
[Source "ChessBase"]
[SourceQuality "1"]
[TimeControl "40/5400+30:1800+30"]

1. d4 {[%emt 0:00:03]} Nf6 {[%emt 0:01:13]} 2. c4 {[%emt 0:00:14]} g6 {[%emt 0:00:35]} 3. f3 {[%emt 0:00:35]} Bg7 {[%emt 0:01:04]} 4. e4 {[%emt 0:00:11]} d6 {[%emt 0:00:05]} 5. Nc3 {[%emt 0:00:08]} O-O {[%emt 0:00:38]} 6. Bg5 {[%emt 0:00:16]} Nbd7 {[%emt 0:01:30]} 7. Qd2 {[%emt 0:00:26]} c5 {[%emt 0:02:06]} 8. d5 {[%emt 0:00:09]} Re8 {[%emt 0:01:31]} 9. Nh3 {[%emt 0:00:20]} h5 {[%emt 0:04:55]} 10. Nf2 {[%emt 0:01:34]} Nh7 {[%emt 0:04:42]} 11. Be3 {[%emt 0:00:55]} a6 {[%emt 0:05:27]} 12. Be2 {[%emt 0:04:43]} Ne5 {[%emt 0:03:49]} 13. h3 {[%emt 0:05:30]} e6 {[%emt 0:02:25]} 14. a4 {[%emt 0:02:12]} exd5 {[%emt 0:01:26]} 15. cxd5 {[%emt 0:00:05]} f5 {[%emt 0:00:36]} 16. O-O {[%emt 0:01:05]} Nf6 {[%emt 0:02:18]} 17. f4 {[%emt 0:09:57]} Nf7 {[%emt 0:00:21]} 18. exf5 {[%emt 0:00:43]} gxf5 {[%emt 0:01:43]} 19. Bd3 {[%emt 0:05:11]} h4 {[%emt 0:00:42]} 20. Rfe1 {[%emt 0:02:52]} Nh5 {[%emt 0:01:36]} 21. Qd1 {[%emt 0:06:31]} Ng3 {[%emt 0:01:29]} 22. Qf3 {[%emt 0:04:40]} Qb6 {[%emt 0:05:55]} 23. Rab1 {[%emt 0:05:15]} Bd7 {[%emt 0:01:41]} 24. Nh1 {[%emt 0:00:47]} Rxe3 {[%emt 0:00:22]} 25. Rxe3 {[%emt 0:00:22]} c4 {[%emt 0:00:19]} 26. Bc2 {[%emt 0:02:46]} Re8 {[%emt 0:00:46]} 27. Rbe1 {[%emt 0:00:26]} Bd4 {[%emt 0:00:18]} 28. Nd1 {[%emt 0:00:18]} Bxe3+ {[%emt 0:00:19]} 29. Rxe3 {[%emt 0:00:50]} Rxe3 {[%emt 0:03:11]} 30. Qxe3 {[%emt 0:00:18]} Qxe3+ {[%emt 0:02:05]} 31. Nxe3 {[%emt 0:00:07]} Ne2+ {[%emt 0:00:06]} 32. Kf1 {[%emt 0:08:12]} Nxf4 {[%emt 0:00:29]} 33. Nxf5 {[%emt 0:00:59]} Nxd5 {[%emt 0:03:46]} 34. Kf2 {[%emt 0:02:13]} b5 {[%emt 0:02:49]} 35. axb5 {[%emt 0:00:23]} axb5 {[%emt 0:00:17]} 36. Nxh4 {[%emt 0:00:35]} b4 {[%emt 0:01:25]} 37. Ng3 {[%emt 0:02:09]} b3 {[%emt 0:01:18]} 38. Be4 {[%emt 0:00:21]} Nb6 {[%emt 0:03:06]} 39. Nhf5 {[%emt 0:05:37]} 1/2-1/2

[Event "Polish Youth 1st League 2022"]
[Site "Lublin"]
[Date "2022.07.02"]
[Round "8.5"]
[White "Krzyzosiak, Marta"]
[Black "Hertlein, Irena"]
[Result "0-1"]
[ECO "A13"]
[WhiteElo "1666"]
[BlackElo "1873"]
[Annotator "NA RC"]
[PlyCount "66"]
[EventDate "2022.06.24"]
[EventType "team-tourn"]
[EventCountry "POL"]
[SourceTitle "playchess.com"]
[Source "ChessBase"]
[SourceQuality "1"]
[TimeControl "40/5400+30:1800+30"]

1. c4 {[%emt 0:00:04]} e6 {[%emt 0:00:17]} 2. Nc3 {[%emt 0:00:24]} d5 {[%emt 0:00:06]} 3. cxd5 {[%emt 0:00:21]} exd5 {[%emt 0:00:06]} 4. Nf3 {[%emt 0:01:08]} c5 5. d4 {[%emt 0:00:52]} Nc6 {[%emt 0:01:00]} 6. Bf4 {[%emt 0:05:37]} Nf6 {[%emt 0:01:25]} 7. e3 {[%emt 0:01:54]} c4 {[%emt 0:02:40]} 8. a3 {[%emt 0:03:57]} Be7 {[%emt 0:02:04]} 9. Be2 {[%emt 0:00:44]} O-O {[%emt 0:00:57]} 10. O-O {[%emt 0:01:10]} Bf5 {[%emt 0:03:17]} 11. h3 {[%emt 0:04:04]} h6 {[%emt 0:06:46]} 12. b3 {[%emt 0:16:43]} Qa5 {[%emt 0:06:19]} 13. Na4 {[%emt 0:04:42]} Rfd8 {[%emt 0:32:03]} 14. b4 {[%emt 0:24:31]} Qa6 {[%emt 0:04:08]} 15. Nc5 {[%emt 0:05:03]} Qb5 {[%emt 0:01:59]} 16. Na4 {[%emt 0:03:56]} Ne4 {[%emt 0:03:55]} 17. Ne5 {[%emt 0:08:57]} Nxe5 {[%emt 0:17:44]} 18. Bxe5 {[%emt 0:00:55]} a5 {[%emt 0:06:58]} 19. f3 {[%emt 0:08:37]} Qxa4 {[%emt 0:03:03]} 20. fxe4 {[%emt 0:03:31]} Qxd1 {[%emt 0:00:06]} 21. Rfxd1 {[%emt 0:00:12]} Bxe4 {[%emt 0:00:06]} 22. bxa5 {[%emt 0:00:07]} Rdc8 {[%emt 0:02:59]} 23. Bf3 {[%emt 0:00:41]} Bxf3 {[%emt 0:00:12]} 24. gxf3 {[%emt 0:00:05]} Rxa5 {[%emt 0:00:02]} 25. a4 {[%emt 0:00:21]} Rca8 {[%emt 0:03:26]} 26. Rdb1 {[%emt 0:00:45]} b5 {[%emt 0:00:14]} 27. Bc7 {[%emt 0:00:57]} Rxa4 {[%emt 0:00:05]} 28. Rxa4 {[%emt 0:00:08]} bxa4 {[%emt 0:00:07]} 29. e4 {[%emt 0:00:30]} dxe4 {[%emt 0:00:51]} 30. fxe4 {[%emt 0:00:05]} a3 {[%emt 0:00:29]} 31. d5 {[%emt 0:00:27]} a2 {[%emt 0:00:17]} 32. Ra1 {[%emt 0:00:05]} Bc5+ {[%emt 0:00:12]} 33. Kg2 {[%emt 0:00:39]} Bd4 {[%emt 0:00:04]} 0-1

[Event "Polish Youth 1st League 2022"]
[Site "Lublin"]
[Date "2022.07.02"]
[Round "8.6"]
[White "Duda, Aleksandra"]
[Black "Wieczorek, Maja"]
[Result "1/2-1/2"]
[ECO "A45"]
[WhiteElo "1453"]
[BlackElo "1316"]
[Annotator "NA RC"]
[PlyCount "95"]
[EventDate "2022.06.24"]
[EventType "team-tourn"]
[EventCountry "POL"]
[SourceTitle "playchess.com"]
[Source "ChessBase"]
[SourceQuality "1"]
[TimeControl "40/5400+30:1800+30"]

1. d4 {[%emt 0:00:03]} Nf6 {[%emt 0:00:05]} 2. Bf4 {[%emt 0:00:05]} g6 {[%emt 0:00:12]} 3. Nc3 {[%emt 0:00:06]} Bg7 {[%emt 0:00:06]} 4. e4 {[%emt 0:00:04]} O-O {[%emt 0:00:19]} 5. Qd2 {[%emt 0:00:06]} c6 {[%emt 0:00:59]} 6. Bh6 {[%emt 0:00:21]} b5 {[%emt 0:00:19]} 7. f3 {[%emt 0:04:48]} d5 {[%emt 0:05:29]} 8. e5 {[%emt 0:02:57]} Ne8 {[%emt 0:00:23]} 9. h4 {[%emt 0:01:59]} f6 {[%emt 0:02:14]} 10. exf6 {[%emt 0:06:10]} exf6 {[%emt 0:00:14]} 11. Bxg7 {[%emt 0:01:28]} Nxg7 {[%emt 0:00:14]} 12. g4 {[%emt 0:03:44]} a5 {[%emt 0:04:00]} 13. h5 {[%emt 0:01:58]} g5 {[%emt 0:00:32]} 14. h6 {[%emt 0:04:41]} Ne6 {[%emt 0:00:52]} 15. Nh3 {[%emt 0:05:28]} Qe7 {[%emt 0:02:31]} 16. O-O-O {[%emt 0:01:47]} a4 {[%emt 0:01:11]} 17. f4 {[%emt 0:02:32]} b4 {[%emt 0:02:27]} 18. Ne2 {[%emt 0:00:54]} b3 {[%emt 0:03:35]} 19. a3 {[%emt 0:01:05]} bxc2 {[%emt 0:01:04]} 20. Qxc2 {[%emt 0:00:14]} c5 {[%emt 0:00:46]} 21. Bg2 {[%emt 0:07:51]} Bb7 {[%emt 0:05:55]} 22. dxc5 {[%emt 0:04:14]} Nxc5 {[%emt 0:00:40]} 23. Bxd5+ {[%emt 0:02:27]} Bxd5 {[%emt 0:00:10]} 24. Rxd5 {[%emt 0:00:09]} Ne4 {[%emt 0:15:36]} 25. Qc4 {[%emt 0:05:57]} Kh8 {[%emt 0:02:47]} 26. fxg5 {[%emt 0:02:11]} Nd7 {[%emt 0:03:55]} 27. Rxd7 {[%emt 0:05:00]} Qxd7 {[%emt 0:02:09]} 28. Qxe4 {[%emt 0:00:24]} Rfe8 {[%emt 0:01:59]} 29. Qf3 {[%emt 0:01:36]} Rxe2 {[%emt 0:01:40]} 30. Qxa8+ {[%emt 0:01:33]} Re8 {[%emt 0:00:44]} 31. Qf3 {[%emt 0:00:53]} Rf8 {[%emt 0:05:41]} 32. gxf6 {[%emt 0:01:16]} Qf7 {[%emt 0:02:51]} 33. Kb1 {[%emt 0:03:30]} Rb8 {[%emt 0:02:07]} 34. Qc3 {[%emt 0:01:22]} Kg8 {[%emt 0:02:10]} 35. g5 {[%emt 0:01:13]} Qd5 {[%emt 0:05:57]} 36. Rc1 {[%emt 0:02:38]} Qf5+ {[%emt 0:01:22]} 37. Ka1 {[%emt 0:00:09]} Rf8 {[%emt 0:00:47]} 38. f7+ {[%emt 0:01:49]} Qxf7 {[%emt 0:00:48]} 39. Qc4 {[%emt 0:00:26]} Qxc4 {[%emt 0:00:28]} 40. Rxc4 {[%emt 0:00:00]} Rf1+ {[%emt 0:00:00]} 41. Ka2 {[%emt 0:00:10]} Rh1 {[%emt 0:00:21]} 42. Nf4 {[%emt 0:00:13]} Rg1 {[%emt 0:00:10]} 43. Rc8+ {[%emt 0:00:32]} Kf7 {[%emt 0:00:09]} 44. Rc7+ {[%emt 0:00:06]} Kg8 {[%emt 0:00:17]} 45. Ne6 {[%emt 0:00:34]} Re1 {[%emt 0:01:16]} 46. Rg7+ {[%emt 0:00:16]} Kh8 {[%emt 0:00:14]} 47. Nd8 {[%emt 0:03:28]} Ra1+ {[%emt 0:00:14]} 48. Kxa1 {[%emt 0:00:02]} 1/2-1/2

[Event "Polish Youth 1st League 2022"]
[Site "Lublin"]
[Date "2022.07.02"]
[Round "8.7"]
[White "Suder, Jakub"]
[Black "Klim, Filip"]
[Result "1/2-1/2"]
[ECO "D20"]
[WhiteElo "2306"]
[BlackElo "2015"]
[Annotator "TA"]
[PlyCount "132"]
[EventDate "2022.06.24"]
[EventType "team-tourn"]
[EventCountry "POL"]
[SourceTitle "playchess.com"]
[Source "ChessBase"]
[SourceQuality "1"]
[TimeControl "40/5400+30:1800+30"]

{[%evp 13,132,8,0,0,0,0,4,-14,0,0,0,0,0,0,0,-4,0,0,0,0,5,0,29,0,26,13,119,113,119,58,66,39,35,0,5,0,0,-8,-8,-8,-8,-8,-8,-14,-16,-16,-15,-17,-18,-37,-37,-37,-37,-37,-37,-37,-12,-100,-8,-37,-37,-37,-37,-37,-37,-37,-37,-37,-8,-8,0,-37,-8,-8,-8,-8,-8,-8,-8,-8,-8,-8,-8,-8,-8,-8,-8,-8,0,-8,-8,-8,-8,-8,-8,-8,-8,-8,-8,-8,0,-8,-8,-60,-8,-45,-8,-8,-8,-8,-8,-8,-8,-8,0,-8,0,-8,-8,-8,0]} 1. d4 {[%emt 0:00:05]} d5 {[%emt 0:00:05]} 2. c4 {[%emt 0:00:07]} dxc4 {[%emt 0:00:08]} 3. e4 {[%emt 0:00:19]} e5 {[%emt 0:00:18]} 4. Nf3 {[%emt 0:00:20]} Bb4+ {[%emt 0:00:18]} 5. Bd2 {[%emt 0:04:50]} Bxd2+ {[%emt 0:00:27]} 6. Qxd2 {[%emt 0:01:05]} exd4 {[%emt 0:01:10]} 7. Qxd4 {[%emt 0:02:20]} Nf6 {[%emt 0:03:04]} 8. Qxd8+ {[%emt 0:00:53] D20: Queen's Gambit Accepted: 3 e3 and 3 e4.} Kxd8 {[%emt 0:00:02]} 9. Nc3 {[%emt 0:01:46] next e5 is good for White.} Be6 {[%emt 0:00:40]} 10. Ng5 {[%emt 0:01:16]} Nbd7 {[%emt 0:14:48]} 11. Nxe6+ {[%emt 0:00:11]} fxe6 {[%emt 0:00:05]} 12. Bxc4 {[%emt 0:00:21]} Ke7 {[%emt 0:00:56] [#]} 13. Rd1 $146 {[%emt 0:02:52]} ({Predecessor:} 13. Be2 c6 14. Kd2 e5 15. Ke3 Nc5 16. h4 Rhd8 17. Rad1 a5 18. g3 Rxd1 19. Rxd1 {½-½ (27) Turov,M (2609)-Predojevic,B (2631) Norway 2015}) 13... Ne5 {[%emt 0:04:27]} 14. Be2 {[%emt 0:01:58]} g5 {[%emt 0:00:42]} 15. f3 {[%emt 0:01:10]} h5 {[%emt 0:11:47]} 16. Kf2 {[%emt 0:02:25]} a6 {[%emt 0:05:55]} 17. Ke3 {[%emt 0:01:05]} Rad8 {[%emt 0:05:47]} 18. Na4 {[%emt 0:01:55]} Nfd7 {[%emt 0:06:05]} 19. Rc1 {[%emt 0:01:48]} b5 {[%emt 0:05:09]} (19... c6 $1 $11) 20. Nc5 $16 {[%emt 0:02:55]} c6 {[%emt 0:07:53] [#]} 21. h4 {[%emt 0:03:41]} (21. Nxd7 $1 $16 Rxd7 22. h4 gxh4 23. Rxh4) 21... gxh4 $1 $14 {[%emt 0:05:49]} 22. Nxd7 {[%emt 0:04:01]} Kxd7 {[%emt 0:02:36]} 23. Rcd1+ {[%emt 0:02:34]} Ke7 {[%emt 0:02:31]} 24. Rxd8 {[%emt 0:00:08]} Kxd8 {[%emt 0:01:16]} 25. Rxh4 $11 {[%emt 0:00:38][%mdl 4096] Endgame KRB-KRN} Ng6 {[%emt 0:01:27]} 26. Rh1 {[%emt 0:04:32]} e5 {[%emt 0:00:22] Prevents f4.} 27. g3 {[%emt 0:02:09]} h4 {[%emt 0:02:33]} 28. gxh4 {[%emt 0:04:55]} Rxh4 {[%emt 0:02:18]} 29. Rxh4 {[%emt 0:07:32]} Nxh4 {[%emt 0:00:03] KB-KN} 30. Bf1 {[%emt 0:00:45] Prevents Ng2+.} Ng6 {[%emt 0:00:10]} 31. Bh3 {[%emt 0:00:40]} Nf4 {[%emt 0:00:59]} 32. Bg4 {[%emt 0:00:14]} c5 {[%emt 0:00:25]} 33. Kd2 {[%emt 0:00:28]} Kc7 {[%emt 0:00:17]} 34. Bf5 {[%emt 0:03:38]} Kb6 {[%emt 0:00:45]} 35. a3 {[%emt 0:01:29]} (35. b3 $11 {keeps the balance.}) 35... a5 {[%emt 0:01:26]} (35... c4 $17) 36. Kc2 {[%emt 0:03:52]} c4 {[%emt 0:02:40] [#] aiming for ...b4.} 37. b4 $1 {[%emt 0:00:23]} cxb3+ {[%emt 0:01:44]} 38. Kxb3 {[%emt 0:00:05]} Kc5 {[%emt 0:00:06]} 39. Bg4 {[%emt 0:02:28]} Ne2 {[%emt 0:00:59]} 40. Bh5 {[%emt 0:00:00]} Kd4 {[%emt 0:00:00]} 41. Be8 {[%emt 0:02:18]} Kc5 {[%emt 0:12:13]} 42. Bh5 $1 {[%emt 0:00:02]} b4 {[%emt 0:00:37]} 43. axb4+ {[%emt 0:02:50]} axb4 {[%emt 0:00:05]} 44. Kc2 {[%emt 0:00:31]} Kc4 {[%emt 0:05:32]} ({Reject} 44... Nd4+ $6 45. Kd3 $17) 45. Bf7+ {[%emt 0:00:17]} Kd4 {[%emt 0:00:22]} 46. Bh5 {[%emt 0:03:51]} Nf4 {[%emt 0:02:28]} 47. Be8 {[%emt 0:01:42]} Ne6 {[%emt 0:02:29]} 48. Bh5 {[%emt 0:02:48]} Nc5 {[%emt 0:01:56] And now ...b3+ would win.} 49. Bf7 {[%emt 0:00:50] Prevents b3+.} Ke3 {[%emt 0:02:30]} 50. Bh5 {[%emt 0:00:23]} Kd4 {[%emt 0:04:32] Hoping for ...b3+.} 51. Bf7 {[%emt 0:00:09] Against b3+} Nd3 {[%emt 0:01:33]} (51... b3+ {is more complex.} 52. Kd2 b2 53. Kc2 Nd3) 52. Kd2 {[%emt 0:06:21]} Nf4 {[%emt 0:00:55]} 53. Kc2 {[%emt 0:01:49]} Kc5 {[%emt 0:01:14]} 54. Kd2 {[%emt 0:01:02]} Kb5 {[%emt 0:01:58] White must now prevent ...Ka4.} 55. Be8+ {[%emt 0:00:31]} Kc4 {[%emt 0:01:36]} 56. Bf7+ {[%emt 0:00:09]} Kd4 {[%emt 0:00:28]} 57. Kc2 {[%emt 0:00:49]} Ng2 {[%emt 0:00:36]} 58. Bh5 {[%emt 0:04:26]} (58. Kd2 $11) 58... Ne3+ {[%emt 0:00:49]} ({Black should try} 58... Kc5 $1 $15) 59. Kb2 {[%emt 0:02:14]} Nc4+ {[%emt 0:01:18]} 60. Kc2 {[%emt 0:00:53] The position is equal.} Na5 {[%emt 0:00:18]} 61. Bf7 {[%emt 0:00:44] Inhibits b3+.} Nc6 {[%emt 0:01:58]} 62. Kd2 {[%emt 0:00:56]} Ne7 {[%emt 0:01:19]} 63. Be6 {[%emt 0:00:56]} Nc6 {[%emt 0:01:18]} 64. Bf7 $1 {[%emt 0:00:22]} Na5 {[%emt 0:00:06] ( -> ...b3)} 65. Kc2 {[%emt 0:00:34] Against b3+} Ke3 {[%emt 0:00:38]} 66. Bh5 {[%emt 0:00:25]} Kd4 {[%emt 0:01:11] Weighted Error Value: White=0.10 (very precise) /Black=0.14 (very precise)} 1/2-1/2